[Event "Prague Open 2025"]
[Site "Prague"]
[Date "2025.01.13"]
[Round "5.20"]
[White "Colijn, Stefan"]
[Black "Zawal, Krzysztof"]
[Result "1-0"]
[Annotator "TA"]
[ECO "A13"]
[WhiteElo "2315"]
[BlackElo "2013"]
[PlyCount "63"]
[EventDate "2025.01.07"]
[EventType "swiss"]
[EventCountry "CZE"]
[SourceTitle "playchess.com"]
[Source "ChessBase"]
[SourceQuality "1"]
[TimeControl "40/5400+30:1800+30"]

{[%evp 14,63,44,0,50,49,30,40,41,41,129,158,155,157,230,153,162,155,484,472,456,134,349,343,318,104,100,101,100,98,215,224,224,191,207,0,0,-187,1446,1406,1367,1350,29986,29987,29987,29988,29988,29989,29989,6550,5497,5485]} 1. c4 Nf6 {[%emt 0:00:27]} 2. g3 {[%emt 0:04:03]} e6 {[%emt 0:00:26]} 3. Bg2 {[%emt 0:00:05]} d5 {[%emt 0:00:33]} 4. Nf3 {[%emt 0:00:05]} dxc4 {[%emt 0:01:13]} 5. Qa4+ {[%emt 0:00:49]} Nbd7 {[%emt 0:00:35]} 6. Qxc4 {[%emt 0:01:02]} a6 {[%emt 0:00:37]} 7. Qc2 {[%emt 0:00:22]} c5 {[%emt 0:01:00]} 8. O-O {[%emt 0:00:19]} Ra7 {[%emt 0:03:49]} (8... b5 $11) 9. d4 {[%emt 0:02:02]} b6 {[%emt 0:00:32]} 10. Nc3 {[%emt 0:08:00]} Bb7 {[%emt 0:02:48]} 11. e4 {[%emt 0:09:07]} Qa8 {[%emt 0:10:11] [#]} (11... Be7 $14) 12. d5 $1 $16 {[%emt 0:07:01][%mdl 512]} exd5 {[%emt 0:08:59]} 13. exd5 {[%emt 0:01:07]} Nxd5 {[%emt 0:02:13]} (13... Be7 $16) 14. Re1+ {[%emt 0:07:53]} Be7 {[%emt 0:01:24] [#]} 15. Nh4 $1 {[%emt 0:07:19][%cal Bf3h4,Bh4g2,Bg2f4][%mdl 32]} g6 $2 {[%emt 0:06:35]} (15... Nb4 $16 {is tougher.} 16. Qe2 O-O) 16. Nxd5 $18 {[%emt 0:11:26]} Bxd5 {[%emt 0:00:33]} 17. Bh6 $2 {[%emt 0:09:47]} (17. Bg5 $18 {is more deadly.} f6 18. Nxg6 hxg6 19. Qxg6+ Kd8 20. Rxe7 fxg5 (20... Kxe7 $2 21. Qg7+ Kd8 22. Bxf6+ Nxf6 23. Qxf6+ Re7 24. Qxh8+ Kc7 25. Qxa8 $18) 21. Qxg5 (21. Rae1 Bxg2 22. Re8+ Rxe8 $16)) 17... Nf8 $2 {[%emt 0:21:11]} (17... Bxg2 $16 18. Nxg2 f6) 18. Qc3 {[%emt 0:03:05]} Rg8 {[%emt 0:01:47] [#]} 19. Rad1 $2 {[%emt 0:01:57]} (19. Bxd5 $1 $18 {is the precise move to win.} Qxd5 20. Rad1) 19... Bxg2 $16 {[%emt 0:01:59]} 20. Nxg2 {[%emt 0:00:06]} Ne6 {[%emt 0:00:07]} 21. Nf4 {[%emt 0:07:11] White is much more active.} Nd4 {[%emt 0:00:43]} (21... Rd7 $16) 22. Rxd4 $1 $18 {[%emt 0:01:42]} cxd4 {[%emt 0:00:21]} 23. Qxd4 {[%emt 0:01:08]} Rd7 {[%emt 0:02:15] Prevents Nd5} 24. Qf6 $2 $40 {[%emt 0:00:22][%mdl 128] White mounts an attack.} (24. Qxb6 $18 {aiming for Bg5.} Qc8 25. h4) 24... Qb7 $1 $11 {[%emt 0:01:20][%cal Od7d1] Hoping for ...Rd1!.} 25. Bg5 $2 {[%emt 0:10:55]} (25. Qc3 $11) 25... Kd8 $4 {[%emt 0:01:00][%mdl 8192]} (25... Rd1 26. Rxd1 Bxf6 27. Bxf6 $14) (25... h6 $19 26. Bxh6 Rd1) 26. Qxf7 $18 {[%emt 0:02:02] Threatening mate with Bxe7+.} Rh8 {[%emt 0:06:37] [#]} 27. Rc1 $1 {[%emt 0:00:06][%cal Rf4e6]} Rd6 {[%emt 0:04:00]} (27... Qe4 28. Ne6+) 28. Ne6+ {[%emt 0:01:30]} Rxe6 {[%emt 0:00:14]} 29. Qxe6 {[%emt 0:00:02]} Bxg5 {[%emt 0:01:04]} 30. Rd1+ {[%emt 0:00:08]} Kc7 {[%emt 0:00:08]} 31. Rd7+ {[%emt 0:00:12]} (31. Qe5+ $142 Kc8 32. Qxh8+ Kc7 33. Qe5+ (33. Qxh7+ Kb8 $18) 33... Kc8 34. Qe8+ (34. Qxg5 Kb8 $18) 34... Kc7 35. Rd7+ Kc6 36. Rd8+ (36. Rxb7+ Kxb7 37. Qd7+ Kb8 $18) 36... Qd7 37. Qxd7+ (37. Rxd7 Bf6 38. Qc8+ Kb5 39. Rd5+ Kb4 40. Qg4+ Bd4 41. Qxd4#) 37... Kc5 38. Qc8+ (38. Rc8+ Kb4 39. Qd4+ Ka5 40. b3 b5 41. Qc3+ b4 42. Qc5#) 38... Kb4 39. Rd4+ (39. Qg4+ Ka5 40. Qxg5+ b5 41. Rd6 Ka4 42. Qc5 h6 43. Rxa6#) 39... Kb5 40. Qd7+ Kc5 41. Qd5#) 31... Kb8 {[%emt 0:00:10]} 32. Qe5+ {[%emt 0:00:18]} 1-0

[Event "Prague Open 2025"]
[Site "Prague"]
[Date "2025.01.13"]
[Round "5.21"]
[White "Pourquet, Matthieu"]
[Black "Bohatyrov, Mykola"]
[Result "1-0"]
[Annotator "TA"]
[ECO "E06"]
[WhiteElo "2262"]
[BlackElo "1998"]
[PlyCount "55"]
[EventDate "2025.01.07"]
[EventType "swiss"]
[EventCountry "CZE"]
[SourceTitle "playchess.com"]
[Source "ChessBase"]
[SourceQuality "1"]
[TimeControl "40/5400+30:1800+30"]

{[%evp 16,55,4,-1,33,32,75,68,70,72,337,344,296,302,346,335,333,345,333,333,507,494,397,371,716,347,296,289,427,408,427,350,416,342,246,376,831,802,29994,0,333,97]} 1. d4 {[%emt 0:04:21]} Nf6 {[%emt 0:00:13]} 2. c4 {[%emt 0:00:13]} e6 {[%emt 0:00:49]} 3. g3 {[%emt 0:00:20]} d5 {[%emt 0:00:39]} 4. Bg2 {[%emt 0:00:06]} Be7 {[%emt 0:00:34]} 5. Nf3 {[%emt 0:00:24]} O-O {[%emt 0:00:15]} 6. O-O {[%emt 0:01:38]} c6 {[%emt 0:01:36]} 7. Qc2 {[%emt 0:00:12]} b6 {[%emt 0:04:27]} 8. Nbd2 {[%emt 0:01:40]} Bb7 {[%emt 0:00:40]} 9. e4 {[%emt 0:01:51]} dxe4 {[%emt 0:02:08]} 10. Nxe4 {[%emt 0:00:06]} Na6 {[%emt 0:14:45]} 11. Rd1 {[%emt 0:06:09] White is more active.} Nxe4 {[%emt 0:26:22]} 12. Qxe4 $40 {[%emt 0:00:29][%mdl 128] White is out for blood.} Bd6 $2 {[%emt 0:01:43][%mdl 8192]} (12... Nc5 $16 13. Qe2 (13. dxc5 $2 Qxd1+ 14. Bf1 Bxc5 $19) 13... Nd7) 13. Ng5 $18 {[%emt 0:12:02][%csl Gg5][%cal Re4h7]} g6 {[%emt 0:01:30]} 14. Qh4 {[%emt 0:02:17][%csl Gg5][%cal Rh4h7]} h5 {[%emt 0:00:39]} 15. g4 {[%emt 0:00:24]} Qe7 {[%emt 0:07:41]} 16. gxh5 {[%emt 0:02:38]} f6 {[%emt 0:01:52]} 17. Nxe6 {[%emt 0:17:33][%cal Oh5g6]} Qxe6 {[%emt 0:05:04]} (17... g5 {was worth a try.} 18. Qe4 Rf7) 18. hxg6 {[%emt 0:00:33]} Qe7 {[%emt 0:00:47] Prevents Qh7+} 19. Bh6 {[%emt 0:00:46] Repels Qg7} Rfe8 $2 {[%emt 0:04:47]} (19... f5 20. Qh5 Nc7) 20. Rd3 {[%emt 0:04:13]} (20. Re1 $142 Qc7 21. a3 (21. Qxf6 Bf8 $18)) 20... f5 {[%emt 0:08:11] [#]} 21. Qh5 $1 {[%emt 0:18:51]} Qf6 {[%emt 0:03:20]} (21... Nc7 $142 22. Rf3 (22. Qxf5 Ne6 $18) 22... Qd7) 22. Kh1 {[%emt 0:00:49]} Nc7 {[%emt 0:04:48]} 23. Rh3 {[%emt 0:02:51]} Ne6 {[%emt 0:02:56]} 24. Rg1 {[%emt 0:02:03][%cal Oc4c5]} Re7 {[%emt 0:00:57]} 25. g7 {[%emt 0:04:37] Dodges Bf4} Qf7 $2 {[%emt 0:02:26]} (25... Nxg7 26. Bg5 Nxh5 27. Bxf6 Ng3+ (27... Nxf6 28. Bd5+ Kf8 29. Rh8+) 28. fxg3 Re2) 26. Qh4 {[%emt 0:00:29] Strongly threatening Bf3.} Qf6 27. Qh5 $2 (27. Qxf6 {mates} Rf7 28. Qxe6 Bc8 29. Qe8+ (29. Qxd6 Bb7 30. Bf4 Rxg7 31. Qe6+ Rf7 32. Bxc6+ Kf8 33. Rh8#) 29... Rf8 30. gxf8=Q+ (30. gxf8=B Bxf8 31. Qxf8+ Kh7 32. Qg7#) 30... Bxf8 31. Qxf8+ Kh7 32. Qg7#) 27... Nxg7 $2 {[%mdl 8192]} (27... Qf7 $1 $11 {and Black has nothing to worry.}) 28. Bf3 $2 (28. Bf1 $18 Qxd4 29. Bxg7 (29. Qxf5 $2 {loses.} c5+ 30. Rf3 Qe5 $19) 29... c5+ (29... Rxg7 30. Rxg7+ Kxg7 31. Qg5+ Kf8 32. Qxf5+ Kg8 33. Rh7 $18) 30. f3 Qxg1+ (30... Rxg7 $2 31. Qh7+ Kf8 32. Rxg7 $18) 31. Kxg1 Rxg7+ 32. Bg2) 1-0

[Event "Prague Open 2025"]
[Site "Prague"]
[Date "2025.01.14"]
[Round "6.1"]
[White "Sokhor, Nazar"]
[Black "Harshavardhan G B"]
[Result "0-1"]
[Annotator "TA"]
[ECO "A04"]
[WhiteElo "2265"]
[BlackElo "2405"]
[PlyCount "88"]
[EventDate "2025.01.07"]
[EventType "swiss"]
[EventCountry "CZE"]
[SourceTitle "playchess.com"]
[Source "ChessBase"]
[SourceQuality "1"]
[TimeControl "40/5400+30:1800+30"]

{[%evp 9,88,-8,3,0,0,0,0,0,0,-17,-27,-19,-14,-17,-20,-10,-11,-14,0,0,0,0,0,0,0,-18,-18,-32,-27,-26,-26,-36,-34,-39,-38,-39,-27,-31,-22,-41,-41,-41,-33,-49,-40,-43,-30,-47,-23,-16,-16,-120,-111,-129,-100,-121,-107,-197,-180,-160,-218,-199,-212,-194,-165,-256,-241,-266,-266,-327,-291,-431,-375,-422,-405,-425,-424,-393,-374,-327,-350]} 1. Nf3 {[%emt 0:00:08]} c5 {[%emt 0:00:24]} 2. c3 {[%emt 0:00:36]} Nf6 {[%emt 0:00:46]} 3. d4 {[%emt 0:00:11]} e6 {[%emt 0:00:14]} 4. Bf4 {[%emt 0:00:22]} Nc6 {[%emt 0:00:10]} 5. e3 {[%emt 0:00:17]} h6 {[%emt 0:00:12]} 6. h3 {[%emt 0:00:28]} d5 {[%emt 0:00:10]} 7. Nbd2 {[%emt 0:02:38]} Bd6 {[%emt 0:00:10]} 8. Bxd6 {[%emt 0:03:25]} Qxd6 {[%emt 0:00:10]} 9. dxc5 {[%emt 0:03:42]} Qxc5 {[%emt 0:01:18]} 10. c4 {[%emt 0:00:39]} d4 {[%emt 0:05:34]} 11. exd4 {[%emt 0:00:50]} Nxd4 {[%emt 0:00:58]} 12. Nxd4 {[%emt 0:01:57]} Qxd4 {[%emt 0:00:08]} 13. Qc2 {[%emt 0:00:40]} Bd7 {[%emt 0:01:54]} 14. Be2 {[%emt 0:01:44]} Qe5 {[%emt 0:08:22]} 15. Nf3 {[%emt 0:01:02]} Qa5+ {[%emt 0:00:08]} 16. Qd2 {[%emt 0:00:13]} Qxd2+ {[%emt 0:00:08]} 17. Nxd2 {[%emt 0:02:23]} Rc8 {[%emt 0:01:46]} 18. Bf3 {[%emt 0:02:22]} Ke7 {[%emt 0:01:14]} 19. Rc1 {[%emt 0:07:59]} (19. Bxb7 Rb8 20. Bf3 Rxb2 $17) 19... b5 {[%emt 0:03:12]} 20. O-O {[%emt 0:19:05]} bxc4 {[%emt 0:02:10]} 21. Nxc4 {[%emt 0:02:29]} Bb5 {[%emt 0:00:14]} 22. Be2 {[%emt 0:00:25]} Nd5 {[%emt 0:01:46]} 23. Rfd1 {[%emt 0:03:57]} Rc5 {[%emt 0:08:04]} 24. b3 {[%emt 0:02:05]} Rhc8 {[%emt 0:00:28]} 25. Bf1 {[%emt 0:01:48]} R8c7 {[%emt 0:03:02]} 26. Ra1 {[%emt 0:00:50]} a5 {[%emt 0:03:42]} 27. Rd2 {[%emt 0:05:05]} a4 {[%emt 0:02:48]} 28. Re1 {[%emt 0:13:27]} Bxc4 {[%emt 0:02:52]} 29. bxc4 {[%emt 0:00:35]} Nb6 {[%emt 0:00:16]} 30. Rb2 {[%emt 0:00:11]} (30. Rc1 $11 {keeps the balance.}) 30... Nxc4 $17 {[%emt 0:01:30]} 31. Rb4 {[%emt 0:00:08]} Nd2 {[%emt 0:00:24]} 32. Rd1 {[%emt 0:11:30]} (32. Rxa4 $2 {loses.} Rc1 33. Rxc1 Rxc1 $19) 32... Nxf1 {[%emt 0:01:12]} 33. Kxf1 {[%emt 0:00:02] [#]} (33. Rxa4 $17 Rc2 34. Rxf1) 33... Rc4 $1 $19 {[%emt 0:00:12]} 34. Rxc4 {[%emt 0:01:57]} Rxc4 {[%emt 0:00:08][%mdl 4096] Endgame KR-KR. Black is a pawn up.} 35. Rd2 {[%emt 0:00:10]} h5 {[%emt 0:03:00]} 36. Ke2 {[%emt 0:00:05]} h4 {[%emt 0:02:16]} 37. Kd3 {[%emt 0:05:39]} (37. Kd1 $142) 37... Rc1 {[%emt 0:00:38]} 38. Rb2 {[%emt 0:00:33]} Rg1 {[%emt 0:00:46]} 39. f3 {[%emt 0:01:15]} g5 {[%emt 0:00:56] Threatens to win with ...a3.} 40. Ke3 {[%emt 0:03:20]} (40. Rf2 {is a better defense.}) 40... Re1+ {[%emt 0:01:48]} 41. Kf2 {[%emt 0:30:08]} Rc1 {[%emt 0:30:26]} 42. Ke3 {[%emt 0:00:08]} f5 {[%emt 0:01:36]} 43. Kd2 {[%emt 0:00:16]} Rg1 {[%emt 0:00:16]} 44. Kc3 {[%emt 0:00:05]} a3 {[%emt 0:00:12]} 0-1

[Event "Prague Open 2025"]
[Site "Prague"]
[Date "2025.01.14"]
[Round "6.2"]
[White "Horak, Martin"]
[Black "Jain Kashish Manoj"]
[Result "0-1"]
[Annotator "TA"]
[ECO "A06"]
[WhiteElo "2357"]
[BlackElo "2363"]
[PlyCount "52"]
[EventDate "2025.01.07"]
[EventType "swiss"]
[EventCountry "CZE"]
[SourceTitle "playchess.com"]
[Source "ChessBase"]
[SourceQuality "1"]
[TimeControl "40/5400+30:1800+30"]

{[%evp 18,52,22,0,0,0,0,-22,-10,-22,-13,-18,-16,0,0,-23,-15,-35,-7,-39,-42,-51,-42,-212,-194,-335,-341,-341,-317,-302,-320,-456,-470,-622,-635,-807,-806]} 1. Nf3 {[%emt 0:00:08]} d5 {[%emt 0:00:13]} 2. e3 {[%emt 0:00:06]} Nf6 {[%emt 0:00:08]} 3. c4 {[%emt 0:00:05]} c6 {[%emt 0:00:05]} 4. Nc3 {[%emt 0:00:04]} a6 {[%emt 0:00:19]} 5. Be2 {[%emt 0:00:59]} dxc4 {[%emt 0:08:36]} 6. Bxc4 {[%emt 0:00:07]} b5 {[%emt 0:00:52]} 7. Be2 {[%emt 0:04:40]} e6 {[%emt 0:03:56]} 8. d4 {[%emt 0:05:38]} c5 {[%emt 0:02:28]} 9. O-O {[%emt 0:05:40]} Bb7 {[%emt 0:00:53]} 10. b3 {[%emt 0:02:15]} Nbd7 {[%emt 0:01:48]} 11. Bb2 {[%emt 0:01:48]} Be7 {[%emt 0:01:05]} 12. a4 {[%emt 0:01:03]} b4 {[%emt 0:02:08]} 13. Nb1 {[%emt 0:00:17]} O-O {[%emt 0:01:35]} 14. Nbd2 {[%emt 0:00:47]} cxd4 {[%emt 0:01:35]} 15. Nxd4 {[%emt 0:02:37]} Nc5 {[%emt 0:02:48]} 16. Nc4 {[%emt 0:03:55]} Rc8 {[%emt 0:15:54]} (16... Qc7 {is more complex.} 17. Rc1 Rac8 18. a5 Rcd8) 17. Rc1 {[%emt 0:21:34]} Rc7 {[%emt 0:04:27]} 18. Qe1 {[%emt 0:04:03][%cal Oe1d1]} Nd5 {[%emt 0:04:42]} 19. f3 {[%emt 0:06:31]} Bg5 {[%emt 0:06:54]} (19... e5 $6 20. Nf5 $14) 20. Qg3 $2 {[%emt 0:09:19]} ({White should play} 20. Rd1 $15 Rd7 (20... Nxe3 21. Nxe6 Qe7 22. Nxc7 $14) (20... Bxe3+ 21. Nxe3 Nxe3 22. Nxe6 $16) 21. Kh1) 20... Nxe3 $19 {[%emt 0:14:30]} (20... Bxe3+ $2 21. Nxe3 Nc3 (21... Nxe3 $2 22. Nb5 $18) 22. Bxc3 bxc3 23. Rfd1 $18) 21. Nxe3 {[%emt 0:03:04]} (21. f4 $142 Nxc4 (21... Nxf1 22. Qxg5 f6 23. Qh5 $14) 22. Rxc4) 21... Bxe3+ {[%emt 0:00:02]} 22. Kh1 {[%emt 0:00:06][%cal Od4c6]} Bxc1 {[%emt 0:01:41]} (22... Bxd4 $2 {too greedy.} 23. Bxd4 Qxd4 24. Qxc7 $18) 23. Rxc1 {[%emt 0:02:45][%cal Od4c6] Nc6! is the strong threat.} f6 {[%emt 0:01:21]} 24. Bc4 {[%emt 0:08:00]} (24. Qe1 $142) 24... Kh8 {[%emt 0:00:33] White must now prevent ...e5.} 25. h4 {[%emt 0:01:24]} e5 {[%emt 0:01:56]} 26. Ne2 {[%emt 0:03:21]} Qd2 {[%emt 0:01:22]} 0-1

[Event "Prague Open 2025"]
[Site "Prague"]
[Date "2025.01.14"]
[Round "6.3"]
[White "Lewtak, Damian"]
[Black "Radzimski, Antoni"]
[Result "1-0"]
[Annotator "TA"]
[ECO "C72"]
[WhiteElo "2359"]
[BlackElo "2289"]
[PlyCount "127"]
[EventDate "2025.01.07"]
[EventType "swiss"]
[EventCountry "CZE"]
[SourceTitle "playchess.com"]
[Source "ChessBase"]
[SourceQuality "1"]
[TimeControl "40/5400+30:1800+30"]

{[%evp 17,127,28,25,24,53,25,38,9,10,9,10,-5,-6,0,-6,-14,0,0,0,0,0,-3,0,-7,0,0,0,0,0,0,0,0,0,0,0,-2,0,0,0,0,4,0,3,10,23,17,17,17,17,17,17,17,17,17,17,2,17,17,17,17,17,17,17,17,17,17,17,17,17,10,10,10,10,0,0,0,91,91,91,91,91,91,91,91,91,91,91,91,91,91,91,91,999,943,1194,1124,1008,172,1692,1454,1322,1108,2583,1695,2203,2027,2044,1948,6959,6282,2410,1883]} 1. e4 {[%emt 0:00:02]} e5 {[%emt 0:00:11]} 2. Nf3 {[%emt 0:00:07]} Nc6 {[%emt 0:00:04]} 3. Bb5 {[%emt 0:00:06]} a6 {[%emt 0:00:02]} 4. Ba4 {[%emt 0:00:07]} d6 {[%emt 0:01:16]} 5. O-O {[%emt 0:04:35]} Bd7 {[%emt 0:00:06]} 6. c3 {[%emt 0:03:27]} g6 {[%emt 0:00:14]} 7. d4 {[%emt 0:01:09]} Bg7 {[%emt 0:00:17]} 8. dxe5 {[%emt 0:01:23]} Nxe5 {[%emt 0:12:16]} 9. Nxe5 {[%emt 0:02:47]} dxe5 {[%emt 0:07:28]} 10. Bg5 {[%emt 0:11:27]} Ne7 {[%emt 0:04:48]} 11. Bxd7+ {[%emt 0:02:45]} Qxd7 {[%emt 0:00:17]} 12. Qxd7+ {[%emt 0:00:04] White is slightly better.} Kxd7 {[%emt 0:00:06][%cal Be8d7,Bd7e6,Be6e7,Be7d8][%mdl 32]} 13. Rd1+ {[%emt 0:00:05]} Ke6 {[%emt 0:03:33]} 14. Bxe7 {[%emt 0:00:07]} Kxe7 {[%emt 0:00:02]} 15. Nd2 {[%emt 0:00:06]} Rhd8 {[%emt 0:01:49]} 16. Nc4 {[%emt 0:03:53]} Rxd1+ {[%emt 0:05:26]} 17. Rxd1 {[%emt 0:00:05]} Rd8 {[%emt 0:00:35]} 18. Rxd8 {[%emt 0:00:37]} Kxd8 $11 {[%emt 0:00:24][%mdl 4096] Endgame. KB-KN} 19. Kf1 {[%emt 0:01:16]} Kd7 {[%emt 0:01:57]} 20. Ke2 {[%emt 0:00:13]} f6 {[%emt 0:03:29]} 21. Ne3 {[%emt 0:03:07]} c6 {[%emt 0:04:38]} 22. g3 {[%emt 0:03:27]} Bf8 {[%emt 0:04:10]} 23. a4 {[%emt 0:16:29]} Bd6 {[%emt 0:06:40]} 24. f3 {[%emt 0:06:35]} Bc7 {[%emt 0:06:06]} 25. Kd3 {[%emt 0:00:23]} Ke6 {[%emt 0:01:22]} 26. Nc4 {[%emt 0:01:31]} Kd7 {[%emt 0:00:57]} 27. Nd2 {[%emt 0:04:58]} Ke6 {[%emt 0:02:37]} 28. h3 {[%emt 0:03:43]} Kd7 {[%emt 0:01:30]} 29. c4 {[%emt 0:02:43]} c5 {[%emt 0:10:50]} 30. Nf1 {[%emt 0:00:29]} a5 {[%emt 0:00:15]} 31. Ne3 {[%emt 0:00:16]} Bd8 {[%emt 0:00:26]} 32. Ke2 {[%emt 0:00:50]} Ke6 {[%emt 0:00:15]} 33. Nd5 {[%emt 0:01:53]} Kd6 {[%emt 0:00:59]} 34. Kf2 {[%emt 0:00:18]} Ke6 {[%emt 0:00:21]} 35. Ke3 {[%emt 0:03:51]} Kd6 {[%emt 0:01:26]} 36. h4 {[%emt 0:04:44][%cal Bh3h4,Bh4h5][%mdl 32]} Ke6 {[%emt 0:00:39]} 37. Kf2 {[%emt 0:03:15]} Kf7 {[%emt 0:03:18]} 38. Kg2 {[%emt 0:00:18]} Ke6 {[%emt 0:02:00]} 39. Kh3 {[%emt 0:01:34]} Kd6 {[%emt 0:02:21]} 40. h5 {[%emt 0:04:30]} Ke6 {[%emt 0:00:10]} 41. Ne3 {[%emt 0:32:17]} Bc7 {[%emt 0:32:43]} 42. Kg4 {[%emt 0:01:31]} Bd6 {[%emt 0:01:40]} 43. Ng2 {[%emt 0:03:28]} Be7 {[%emt 0:01:43]} 44. hxg6 {[%emt 0:01:51]} hxg6 {[%emt 0:00:04][%cal Bh7g6,Bg6g5][%mdl 32]} 45. Nh4 {[%emt 0:02:17]} Kf7 {[%emt 0:00:39]} 46. f4 {[%emt 0:00:35][%cal Bf3f4,Bf4f5][%mdl 32]} Bd6 {[%emt 0:03:26]} (46... exf4 $11 47. gxf4 Bf8) 47. f5 $16 {[%emt 0:00:09]} g5 {[%emt 0:00:35]} 48. Ng2 {[%emt 0:00:17]} Be7 {[%emt 0:00:11]} 49. Ne3 {[%emt 0:00:44]} Kg7 {[%emt 0:00:58]} 50. Kh5 {[%emt 0:01:05]} b6 {[%emt 0:01:56]} 51. Nd1 {[%emt 0:00:00]} Bd8 {[%emt 0:00:00]} 52. Kg4 {[%emt 0:00:00]} Kf7 {[%emt 0:00:00]} 53. Nc3 {[%emt 0:00:00]} Kg7 {[%emt 0:00:00]} 54. Nb5 {[%emt 0:00:00] Kh5 would now be deadly.} Kf7 $2 {[%emt 0:00:00][%mdl 8192] Black cannot hold the game after this.} (54... Kh6 $16 55. Nc3 Bc7) 55. Kh5 $18 {[%emt 0:00:00] Strongly threatening Kh6.} Kg7 {[%emt 0:00:00] [#]} 56. Nd6 $1 {[%emt 0:00:00]} Be7 {[%emt 0:00:00] [#]} 57. Ne8+ $1 {[%emt 0:00:00]} Kf7 $2 {[%emt 0:00:00]} (57... Kh7 58. Nc7 Kg7 59. Ne6+ Kf7) 58. Nc7 {[%emt 0:00:00] Black must now prevent Kh6. White is clearly winning.} Kg7 {[%emt 0:00:00]} 59. Ne6+ {[%emt 0:00:00]} Kf7 {[%emt 0:00:00]} 60. Kh6 {[%emt 0:00:00]} Bd6 {[%emt 0:00:00] Prevents Nc7} 61. Kh7 {[%emt 0:00:00]} g4 {[%emt 0:00:00]} 62. Nd8+ {[%emt 0:00:00]} Ke7 {[%emt 0:00:00]} 63. Nc6+ {[%emt 0:00:00]} Kf7 {[%emt 0:00:00]} 64. Na7 {[%emt 0:00:00] Weighted Error Value: White=0.03 (flawless) /Black=0.11 (very precise) .  Loses game:     	---       	Black=1      Mistake:       	---       	Black=1      Inaccurate:     	White=2     	Black=1      OK:         	White=12    	Black=15     Best:        	White=1     	Black=1} 1-0

[Event "Prague Open 2025"]
[Site "Prague"]
[Date "2025.01.14"]
[Round "6.4"]
[White "Senthil Maran K"]
[Black "Zhukovskyi, Oleksandr"]
[Result "1-0"]
[Annotator "TA"]
[ECO "A46"]
[WhiteElo "2398"]
[BlackElo "2162"]
[PlyCount "91"]
[EventDate "2025.01.07"]
[EventType "swiss"]
[EventCountry "CZE"]
[SourceTitle "playchess.com"]
[Source "ChessBase"]
[SourceQuality "1"]
[TimeControl "40/5400+30:1800+30"]

{[%evp 15,91,0,13,0,0,0,8,0,0,-14,32,25,45,12,25,25,35,6,32,34,36,-17,-16,-27,28,31,35,9,20,2,2,0,0,-6,35,30,40,37,41,37,43,22,72,50,54,55,150,60,104,93,94,82,131,87,77,16,111,106,221,206,183,121,256,256,481,460,433,440,589,585,711,715,715,708,707,706,751,737]} 1. d4 {[%emt 0:07:13]} Nf6 {[%emt 0:00:11]} 2. Nf3 {[%emt 0:00:11]} d5 {[%emt 0:00:38]} 3. g3 {[%emt 0:00:21]} g6 {[%emt 0:00:07]} 4. Bg2 {[%emt 0:00:13]} Bg7 {[%emt 0:00:07]} 5. c4 {[%emt 0:00:09]} c6 {[%emt 0:00:06]} 6. Qb3 {[%emt 0:00:24]} Qb6 {[%emt 0:06:31]} 7. Nc3 {[%emt 0:01:43]} O-O {[%emt 0:09:50]} 8. O-O {[%emt 0:00:57]} Bf5 {[%emt 0:07:38]} 9. Na4 {[%emt 0:12:21]} Qxb3 {[%emt 0:01:04]} 10. axb3 {[%emt 0:00:03][%cal Oa4b6]} Na6 {[%emt 0:04:29]} 11. Bd2 {[%emt 0:03:02]} Ne4 {[%emt 0:01:59]} 12. Ba5 {[%emt 0:03:42]} Rfb8 {[%emt 0:10:23]} (12... Be6 $11) 13. Rfc1 $14 {[%emt 0:04:27]} g5 {[%emt 0:05:18]} 14. Be1 {[%emt 0:06:50]} e6 {[%emt 0:05:46]} 15. e3 {[%emt 0:03:06]} f6 {[%emt 0:04:00]} 16. Nd2 {[%emt 0:03:21]} Nxd2 {[%emt 0:03:27]} 17. Bxd2 {[%emt 0:00:08]} Bf8 {[%emt 0:05:53]} 18. Nc3 {[%emt 0:11:19]} (18. Bf1 $14) 18... Rd8 {[%emt 0:02:35]} 19. Na4 {[%emt 0:07:38]} Rdb8 {[%emt 0:10:40]} (19... Nb4) 20. Bf1 $11 {[%emt 0:04:29]} Nc7 {[%emt 0:00:40]} 21. Be1 {[%emt 0:03:42]} Bd6 {[%emt 0:03:00]} 22. b4 {[%emt 0:03:37]} dxc4 {[%emt 0:05:49]} 23. Rxc4 {[%emt 0:00:24]} Be4 $1 {[%emt 0:01:11]} 24. Rcc1 {[%emt 0:02:06]} Kf7 {[%emt 0:05:48]} 25. Be2 {[%emt 0:01:04]} Bd5 {[%emt 0:01:26]} 26. Nc5 {[%emt 0:03:22]} f5 {[%emt 0:01:14]} 27. f3 {[%emt 0:01:06]} b6 {[%emt 0:01:38]} 28. Nd3 {[%emt 0:01:42]} Ne8 {[%emt 0:01:16]} (28... Nb5 $11) 29. Ne5+ {[%emt 0:03:28]} (29. g4 {keeps more tension.} a5 30. bxa5 bxa5 31. Bxa5 Nf6 32. Bd1) 29... Bxe5 {[%emt 0:00:03]} 30. dxe5 {[%emt 0:00:04]} h5 {[%emt 0:02:04] Black is weak on the dark squares} ({Black should play} 30... a5 $14) 31. h3 {[%emt 0:03:14]} (31. e4 $1 $16 {[%cal Re4d5]} fxe4 32. fxe4 Bxe4 33. Bxh5+ Kg7 34. Be2) 31... g4 {[%emt 0:00:37]} 32. hxg4 {[%emt 0:02:13]} hxg4 {[%emt 0:00:01]} 33. fxg4 {[%emt 0:00:08]} fxg4 {[%emt 0:00:04]} (33... Ng7 $142) 34. Bd3 {[%emt 0:00:05] and e4 should not be overlooked} Bf3 {[%emt 0:00:31]} 35. e4 {[%emt 0:00:01] White is more active.} (35. Kf2 $16) 35... Ng7 {[%emt 0:01:25]} (35... Rd8 $11 {remains equal.} 36. Ba6 Rd7 (36... Bxe4 37. Bb7 $14)) 36. Rxc6 $16 {[%emt 0:00:35]} Rh8 {[%emt 0:00:29]} (36... Rb7 $16) 37. Rc7+ $18 {[%emt 0:00:22]} Kg6 {[%emt 0:00:07]} 38. Raxa7 {[%emt 0:00:55]} ({Better is} 38. Kf2 $18) 38... Rh1+ {[%emt 0:00:18]} (38... Rxa7 $16 39. Rxa7 Rd8) 39. Kf2 {[%emt 0:00:01]} Rh2+ $2 {[%emt 0:00:50]} (39... Rxa7 {was necessary.} 40. Rxa7 Bd1) 40. Ke3 {[%emt 0:00:18]} Rxa7 {[%emt 0:00:21]} 41. Rxa7 {[%emt 0:30:02]} Rxb2 {[%emt 0:30:55]} 42. Rb7 {[%emt 0:00:56]} Rg2 {[%emt 0:00:00]} 43. Rxb6 {[%emt 0:00:00]} Rg1 {[%emt 0:00:00]} 44. Bf2 {[%emt 0:00:00]} Rc1 {[%emt 0:00:00]} 45. b5 {[%emt 0:00:00]} Kg5 {[%emt 0:00:00]} 46. Rb8 {[%emt 0:00:00]} 1-0